bitfinex/quotes_ETHUSD_20240721
["timestamp","ask_amount","ask_price","bid_price","bid_amount"]
[1721560057768,0.4283659,3503.1,3502.5,2.3014]
[1721560057769,0.05657447,3502.9,3502.5,2.3014]
[1721560057986,0.37173479,3503.1,3502.5,2.3014]
[1721560058299,0.056531,3502.8,3502.5,2.3014]
[1721560058677,0.37173479,3503.1,3502.5,2.3014]
[1721560058890,0.0564864,3502.7,3502.5,2.3014]
[1721560059073,0.37173479,3503.1,3502.5,2.3014]
[1721560059295,0.05645337,3502.6,3502.5,2.3014]
[1721560059493,0.37173479,3503.1,3502.5,2.3014]
[1721560059668,0.05645337,3502.6,3502.5,2.3014]
[1721560060070,0.37173479,3503.1,3502.5,2.3014]
[1721560060289,0.05646493,3502.6,3502.5,2.3014]
[1721560060495,0.37173479,3503.1,3502.5,2.3014]
[1721560060800,0.20640336,3503.0,3502.5,2.3014]
[1721560060998,0.20640336,3502.9,3502.5,2.3014]
[1721560061165,0.05659706,3503.0,3502.5,2.3014]
[1721560061366,0.20640736,3502.9,3502.5,2.3014]
[1721560061575,0.056531,3502.8,3502.5,2.3014]
[1721560061801,0.37173479,3503.1,3502.5,2.3014]
[1721560061998,0.05649797,3502.7,3502.5,2.3014]
[1721560062167,0.37173479,3503.1,3502.5,2.3014]
[1721560062368,0.26298805,3503.0,3502.5,2.3014]
[1721560062580,0.20640256,3502.9,3502.5,2.3014]
[1721560062781,0.05651943,3502.8,3502.5,2.3014]
[1721560063004,0.37173479,3503.1,3502.5,2.3014]
[1721560063172,0.05649797,3502.7,3502.5,2.3014]
[1721560063367,0.37173479,3503.1,3502.5,2.3014]
[1721560063590,0.26298056,3503.0,3502.5,2.3014]
[1721560063797,0.05659706,3503.0,3502.5,2.3014]
[1721560065593,0.95701588,3503.2,3502.5,2.3014]
[1721560066004,0.60208201,3503.1,3502.5,2.3014]
[1721560066168,0.20638042,3503.0,3502.5,2.3014]
[1721560066387,0.05659376,3502.9,3502.5,2.3014]
[1721560067077,2.69190159,3503.1,3502.5,2.3014]
[1721560067277,0.05656283,3502.8,3501.7,2.4084]
[1721560067473,3.05662888,3503.0,3501.7,2.4084]
[1721560067726,0.0565298,3502.7,3501.7,2.4084]
[1721560067873,0.20638556,3502.9,3501.7,2.4084]
[1721560067874,0.05659586,3502.9,3501.7,2.4084]
[1721560068070,3.0,3503.0,3501.7,2.4084]
[1721560068071,0.05649677,3502.6,3501.7,2.4084]
[1721560068389,3.0,3503.0,3501.7,2.4084]
[1721560068590,0.92787255,3502.9,3501.7,2.64924]
[1721560068803,0.20638494,3502.8,3501.7,2.64924]
[1721560068990,0.05656283,3502.8,3501.7,2.64924]
[1721560073231,0.05656283,3502.8,3501.8,2.46550517]
[1721560073450,2.2962,3503.6,3501.8,2.46550517]
[1721560073592,0.05625165,3502.7,3502.0,2.4084]
[1721560073968,3.0,3503.1,3502.0,2.4084]
[1721560074142,0.05630516,3502.6,3502.2,2.4084]
[1721560074321,0.27788473,3503.4,3502.2,2.4084]
[1721560074637,0.26276977,3503.3,3502.2,2.4084]
[1721560074850,0.2062507,3503.2,3502.2,2.4084]
[1721560075136,0.26273675,3503.2,3502.2,2.4084]
[1721560075289,0.20630854,3503.1,3502.2,2.64924]
[1721560075492,0.05645302,3503.1,3502.2,2.64924]
[1721560075809,0.27788473,3503.4,3502.2,2.64924]
[1721560076031,0.26284947,3503.3,3502.2,2.64924]
[1721560076334,0.2063304,3503.2,3502.2,2.64924]
[1721560076534,0.2063304,3503.1,3502.2,2.64924]
[1721560076706,0.05645302,3503.1,3502.2,2.64924]
[1721560076907,0.27788473,3503.4,3502.4,2.4153]
[1721560077225,0.20633572,3503.3,3502.4,2.4153]
[1721560077405,0.20633572,3503.2,3502.4,2.4153]
[1721560077733,0.26278874,3503.1,3502.4,2.4153]
[1721560077938,0.05645302,3503.1,3502.4,2.4153]
[1721560078294,0.20633588,3503.0,3502.4,2.4153]
[1721560078497,0.05641999,3503.0,3502.4,2.4153]
[1721560078896,0.27788473,3503.4,3502.4,2.4153]
[1721560079102,0.05638696,3502.9,3502.4,2.4153]
[1721560079356,0.55740847,3503.3,3502.4,2.4153]
[1721560079535,0.05635392,3502.8,3502.4,2.4153]
[1721560079734,0.44770871,3503.2,3502.4,2.4153]
[1721560079939,0.05439987,3502.7,3502.4,2.4153]
[1721560080151,0.44770871,3503.2,3502.6,2.4153]
[1721560081351,0.20630656,3503.1,3502.6,2.4153]
[1721560081505,0.44770871,3503.2,3502.6,2.4153]
[1721560081709,0.20630672,3503.1,3502.6,2.4153]
[1721560081912,0.44770871,3503.2,3502.6,2.4153]
[1721560082106,0.20634038,3503.1,3502.6,2.4153]
[1721560082306,0.44770871,3503.2,3502.6,2.4153]
[1721560082558,0.20634185,3503.1,3502.6,2.4153]
[1721560082754,0.44770871,3503.2,3502.6,2.4153]
[1721560082924,0.20632154,3503.1,3502.6,2.4153]
[1721560083103,0.44770871,3503.2,3502.6,2.4153]
[1721560083306,0.20632154,3503.1,3502.6,2.4153]
[1721560083530,0.20632154,3503.0,3502.6,2.4153]
[1721560083742,0.44770871,3503.2,3502.6,2.4153]
[1721560084028,0.20631768,3503.1,3502.6,2.4153]
[1721560084228,0.20631768,3503.0,3502.6,2.4153]
[1721560084435,0.44770871,3503.2,3502.6,2.4153]
[1721560084759,0.20631805,3503.1,3502.6,2.4153]
[1721560084958,0.20631805,3503.0,3502.6,2.4153]
[1721560085167,0.44770871,3503.2,3502.6,2.4153]
[1721560085368,0.20631812,3503.1,3502.6,2.4153]
[1721560085672,0.20631812,3503.0,3502.6,2.4153]
[1721560085834,0.44770871,3503.2,3502.6,2.4153]
[1721560086034,0.20631672,3503.1,3502.6,2.4153]
[1721560086270,0.20631672,3503.0,3502.6,2.4153]
[1721560086475,0.44770871,3503.2,3502.6,2.4153]
[1721560086476,0.20631672,3502.9,3502.6,2.4153]
[1721560086671,0.44770871,3503.2,3502.6,2.4153]
[1721560086833,0.20631313,3503.1,3502.6,2.4153]
[1721560087142,0.20631313,3503.0,3502.6,2.4153]
[1721560087350,0.44770871,3503.2,3502.6,2.4153]
[1721560087351,0.20631313,3502.9,3502.6,2.4153]
[1721560087551,0.44770871,3503.2,3502.6,2.4153]
[1721560087773,0.20631301,3503.1,3502.6,2.4153]
[1721560087950,0.20631301,3503.0,3502.6,2.4153]
[1721560088273,0.20631301,3502.9,3502.6,2.4153]
[1721560088444,0.20631301,3502.8,3502.6,2.4153]
[1721560088646,0.79247958,3503.2,3502.6,2.4153]
[1721560088846,0.05443217,3502.7,3502.6,2.4153]
[1721560089072,0.79247958,3503.2,3502.6,2.4153]
[1721560089073,0.44770871,3503.2,3502.6,2.4153]
[1721560089257,0.05443217,3502.7,3502.6,2.4153]
[1721560089457,0.44770871,3503.2,3502.6,2.4153]
[1721560089655,0.05443217,3502.7,3502.6,2.4153]
[1721560089906,0.20632044,3503.0,3502.0,2.4153]
[1721560090215,0.05443905,3502.7,3502.0,2.4153]
[1721560090393,0.20632044,3502.6,3502.0,2.4153]
[1721560090558,0.20632044,3502.5,3502.0,2.4153]
[1721560091059,0.05434684,3502.4,3502.0,2.4153]
[1721560091458,0.30268292,3503.0,3502.0,2.4153]
[1721560091691,0.05431379,3502.3,3502.0,2.4153]
[1721560091903,0.61231916,3502.9,3502.0,2.4153]
[1721560092099,0.20628961,3502.8,3502.0,2.4153]
[1721560092317,0.20628961,3502.7,3502.0,2.4153]
[1721560092675,0.05441292,3502.6,3502.0,2.4153]
[1721560092882,0.20628961,3502.5,3502.0,2.4153]
[1721560093203,0.05437988,3502.5,3502.0,2.4153]
[1721560093375,0.61231916,3502.9,3502.0,2.4153]
[1721560093708,0.65226336,3502.8,3502.0,2.4153]
[1721560093921,0.20628416,3502.7,3502.0,2.4153]
[1721560094081,0.26073011,3502.7,3502.0,2.4153]
[1721560094407,0.20628416,3502.6,3502.0,2.4153]
[1721560094777,0.05437141,3502.5,3502.0,2.4153]
[1721560095002,0.20628416,3502.4,3502.0,2.4153]
[1721560095406,0.05430533,3502.3,3502.0,2.4153]
[1721560096018,0.39150021,3502.8,3502.0,2.4153]
[1721560096198,0.26071341,3502.7,3502.0,2.4153]
[1721560096401,0.20627592,3502.6,3502.0,2.4153]
[1721560096628,0.26063576,3502.5,3502.0,2.4153]
[1721560096819,0.05435984,3502.5,3502.0,2.4153]
[1721560097020,0.39150021,3502.8,3502.0,2.4153]
[1721560097223,0.26070175,3502.7,3502.0,2.4153]
[1721560097454,0.20626426,3502.6,3502.0,2.4153]
[1721560097619,0.05443749,3502.7,3502.0,2.4153]
[1721560097620,0.20626426,3502.5,3502.0,2.4153]
[1721560097806,0.05433837,3502.4,3502.0,2.4153]
[1721560098008,0.39150021,3502.8,3502.0,2.4153]
[1721560098208,0.26070335,3502.7,3502.0,2.4153]
[1721560098516,0.20626586,3502.6,3502.0,2.4153]
[1721560098913,0.05437141,3502.5,3502.0,2.4153]
[1721560099340,0.39150021,3502.8,3502.0,2.4153]
[1721560099548,0.05433837,3502.4,3502.0,2.4153]
[1721560099710,0.39150021,3502.8,3502.0,2.4153]
[1721560099910,0.05430533,3502.3,3502.0,2.4153]
[1721560100226,0.39150021,3502.8,3502.0,2.4153]
[1721560100535,0.26070037,3502.7,3502.0,2.4153]
[1721560100737,0.20626288,3502.6,3502.0,2.4153]
[1721560101241,0.05437141,3502.5,3502.0,2.4153]
[1721560101906,0.39150021,3502.8,3502.0,2.4153]
[1721560102109,0.05433837,3502.4,3502.0,2.4153]
[1721560102418,0.05430533,3502.3,3502.0,2.4153]
[1721560102628,0.39150021,3502.8,3502.0,2.4153]
[1721560102831,0.26069705,3502.7,3502.0,2.4153]
[1721560103036,0.20625956,3502.6,3502.0,2.4153]
[1721560103236,0.26061984,3502.5,3502.0,2.4153]
[1721560103427,0.05436028,3502.5,3502.0,2.4153]
[1721560103608,0.39150021,3502.8,3502.0,2.4153]
[1721560103820,0.26068317,3502.7,3502.0,2.4153]
[1721560104033,0.20625682,3502.6,3502.0,2.4153]
[1721560104233,0.20625682,3502.5,3502.0,2.4153]
[1721560104440,0.05432724,3502.4,3502.0,2.4153]
[1721560104649,0.39150021,3502.8,3502.0,2.4153]
[1721560104940,0.26065924,3502.7,3502.0,2.4153]
[1721560105135,0.20625299,3502.6,3502.0,2.4153]
[1721560105350,0.56345085,3502.6,3502.0,2.4153]
[1721560105552,0.26061047,3502.5,3502.0,2.4153]
[1721560105761,0.20625299,3502.4,3502.0,2.4153]
[1721560106246,0.0543087,3502.3,3502.0,2.4153]
[1721560106429,0.35719786,3502.6,3502.0,2.4153]
[1721560106751,0.86627052,3502.5,3502.0,2.4153]
[1721560106917,0.20627592,3502.4,3502.0,2.4153]
[1721560107248,0.05427409,3502.3,3502.0,2.4153]
[1721560107550,0.60561981,3502.5,3502.0,2.4153]
[1721560107783,0.05424104,3502.2,3502.0,2.4153]
[1721560107918,0.60561981,3502.5,3502.0,2.4153]
[1721560108112,0.05420747,3502.1,3502.0,2.4153]
[1721560108347,0.60561981,3502.5,3502.0,2.4153]
[1721560108550,0.05420747,3502.1,3502.0,2.4153]
[1721560108747,3.0,3502.7,3502.0,2.4153]
[1721560108937,0.05420747,3502.1,3502.0,2.4153]
[1721560109122,3.0,3502.7,3502.0,2.4153]
[1721560109322,0.7369943,3502.6,3502.0,2.4153]
[1721560109524,0.2062443,3502.5,3502.0,2.4153]
[1721560109725,0.26058394,3502.5,3502.0,2.4153]
[1721560109926,0.2062443,3502.4,3502.0,2.4153]
[1721560110221,0.2062443,3502.3,3501.8,2.3623]
[1721560110451,0.05422894,3502.2,3501.8,2.3623]
[1721560110649,0.2062443,3502.1,3501.8,2.3623]
[1721560110946,0.05416285,3502.0,3501.8,2.3623]
[1721560111523,0.29622247,3502.5,3501.8,2.3623]
[1721560111850,0.53592345,3502.4,3501.8,2.3623]
[1721560112052,0.26056736,3502.3,3501.8,2.3623]
[1721560112227,0.2063012,3502.2,3501.8,2.3623]
[1721560112413,0.2063012,3502.1,3501.8,2.3623]
[1721560112621,0.05416702,3502.0,3501.8,2.3623]
[1721560112820,0.32962225,3502.4,3501.8,2.3623]
[1721560113121,0.26047708,3502.3,3501.8,2.3623]
[1721560113320,0.20623209,3502.2,3501.8,2.3623]
[1721560113735,0.0541789,3502.1,3501.8,2.3623]
[1721560114462,0.05427859,3502.0,3501.8,2.3623]
[1721560114619,0.32962225,3502.4,3501.8,2.3623]
[1721560114823,0.26061709,3502.3,3501.8,2.3623]
[1721560115053,0.20623937,3502.2,3501.8,2.3623]
[1721560115256,0.05437772,3502.3,3501.8,2.3623]
[1721560115558,0.20622888,3502.2,3501.8,2.3623]
[1721560115725,0.20622888,3502.1,3501.8,2.3623]
[1721560116056,0.05430007,3502.1,3501.8,2.3623]
[1721560116258,0.32962225,3502.4,3501.8,2.3623]
[1721560116458,0.26060977,3502.3,3501.8,2.3623]
[1721560116628,0.20624362,3502.2,3501.8,2.3623]
[1721560116827,0.05430007,3502.1,3501.8,2.3623]
[1721560117248,0.05426702,3502.0,3501.8,2.3623]
[1721560117556,0.32962225,3502.4,3501.8,2.3623]
[1721560117758,0.05423398,3501.9,3501.8,2.3623]
[1721560117938,0.32962225,3502.4,3501.8,2.3623]
[1721560118139,0.05423398,3501.9,3501.8,2.3623]
[1721560118632,0.32962225,3502.4,3501.8,2.3623]
[1721560118831,0.26059944,3502.3,3501.8,2.3623]
[1721560119032,0.20623329,3502.2,3501.8,2.3623]
[1721560119232,0.05430007,3502.1,3501.8,2.3623]
[1721560119461,0.32962225,3502.4,3501.8,2.3623]
[1721560119662,0.26058688,3502.3,3501.8,2.3623]
[1721560119972,0.2062323,3502.2,3501.8,2.3623]
[1721560120141,0.05435458,3502.3,3501.8,2.3623]
[1721560120349,0.0542885,3502.1,3501.8,2.3623]
[1721560120658,0.05426702,3502.0,3501.8,2.3623]
[1721560120973,0.32962225,3502.4,3501.8,2.3623]
[1721560121145,0.05421667,3501.9,3501.8,2.3623]
[1721560121343,0.32962225,3502.4,3501.8,2.3623]
[1721560121569,0.05421667,3501.9,3501.8,2.3623]
[1721560121747,0.32962225,3502.4,3501.8,2.3623]
[1721560122080,0.20622849,3502.3,3501.8,2.3623]
[1721560122247,0.26054429,3502.2,3501.8,2.3623]
[1721560122441,0.0543158,3502.2,3501.8,2.3623]
[1721560122647,0.32962225,3502.4,3501.8,2.3623]
[1721560122845,0.26058957,3502.3,3501.8,2.3623]
[1721560123051,0.20624073,3502.2,3501.8,2.3623]
[1721560123338,0.05428276,3502.1,3501.8,2.3623]
[1721560123746,0.32962225,3502.4,3501.8,2.3623]
[1721560123939,0.05424971,3502.0,3501.8,2.3623]
[1721560124156,0.32962225,3502.4,3501.1,7.28]
[1721560124335,0.05421667,3501.9,3501.2,2.2665]
[1721560124534,3.0,3502.3,3501.2,2.2665]
[1721560124768,0.20624174,3502.2,3501.2,2.2665]
[1721560124963,0.20624174,3502.1,3501.2,2.2665]
[1721560125289,0.05422007,3502.0,3501.2,2.2665]
[1721560125868,5.3074,3502.4,3501.2,2.2665]
[1721560126070,0.82089003,3502.3,3501.2,2.2665]
[1721560126272,0.20620858,3502.2,3501.2,2.2665]
[1721560126452,0.26046169,3502.1,3501.2,2.2665]
[1721560126633,0.05425311,3502.1,3501.2,2.2665]
[1721560126825,3.56036225,3502.3,3501.2,2.2665]
[1721560127037,0.87710243,3502.2,3501.2,2.2665]
[1721560127241,0.20620006,3502.1,3501.2,2.2665]
[1721560127559,0.05433566,3502.0,3501.2,2.2665]
[1721560128149,3.0,3502.7,3501.3,0.05711328]
[1721560128356,0.20620699,3502.4,3500.8,2.2665]
[1721560128558,0.20620699,3502.3,3501.0,2.2665]
[1721560128735,0.05444981,3502.4,3501.0,2.2665]
[1721560128736,0.05444981,3502.4,3501.2,2.2665]
[1721560129133,0.05441678,3502.3,3501.3,2.32360759]
[1721560129454,3.59503499,3503.0,3501.3,2.2665]
[1721560129652,0.26079201,3502.9,3501.3,2.2665]
[1721560129849,0.20617227,3502.8,3501.5,2.2665]
[1721560130055,0.26072595,3502.7,3501.5,2.2665]
[1721560130418,0.20617227,3502.6,3501.5,2.2665]
[1721560130549,0.05455368,3502.7,3501.5,2.2665]
[1721560130893,0.26028728,3502.6,3501.5,2.2665]
[1721560131204,0.05415575,3502.6,3501.7,2.2665]
[1721560131495,0.20622807,3502.5,3501.7,2.2665]
[1721560131698,0.05408968,3502.4,3501.7,2.2665]
[1721560132063,0.66109357,3502.9,3501.7,2.2665]
[1721560132244,0.26031365,3502.8,3501.7,2.2665]
[1721560132444,2.96524006,3502.7,3501.7,2.2665]
[1721560132694,0.26024758,3502.6,3501.7,2.2665]
[1721560132999,0.20619584,3502.5,3501.7,2.2665]
[1721560133375,0.05399732,3502.4,3501.7,2.2665]
[1721560134075,0.05396428,3502.3,3501.7,2.2665]
[1721560134279,3.0,3502.6,3501.7,2.2665]
[1721560134485,0.83610967,3502.5,3501.7,2.2665]
[1721560134680,0.62993477,3502.5,3501.7,2.2665]
[1721560135086,0.20617208,3502.4,3501.7,2.2665]
[1721560135258,0.05396428,3502.3,3501.7,2.2665]
[1721560135458,0.57590442,3502.5,3501.7,2.2665]
[1721560135676,0.89366648,3502.4,3501.7,2.2665]
[1721560135884,0.68749218,3502.4,3501.7,2.2665]
[1721560138251,0.05399732,3502.4,3501.7,2.2665]
[1721560138452,3.0,3502.6,3501.7,2.2665]
[1721560138760,0.05401661,3502.5,3501.7,2.2665]
[1721560139061,0.2963819,3503.0,3501.7,2.2665]
[1721560139271,0.26003137,3502.9,3501.9,2.3877]
[1721560139467,0.20609406,3502.8,3501.9,2.3877]
[1721560139671,0.05411353,3502.7,3501.9,2.3877]
[1721560140193,0.5927639,3503.0,3501.9,2.3877]
[1721560140380,0.05224971,3502.6,3501.9,2.3877]
[1721560140689,0.05221667,3502.5,3502.1,2.3877]
[1721560140905,0.5927639,3503.0,3502.1,2.3877]
[1721560141058,0.2584446,3502.9,3502.1,2.3877]
[1721560141264,0.20609527,3502.8,3502.1,2.3877]
[1721560141578,0.25836697,3502.7,3502.1,2.3877]
[1721560141783,0.0522717,3502.7,3502.1,2.3877]
[1721560142170,0.5927639,3503.0,3502.1,2.3877]
[1721560142369,0.05225024,3502.6,3502.1,2.3877]
[1721560142571,0.5927639,3503.0,3502.1,2.3877]
[1721560142865,0.20615701,3502.9,3502.1,2.3877]
[1721560143066,0.20615701,3502.8,3502.1,2.3877]
[1721560143396,0.25667034,3502.7,3502.1,2.3877]
[1721560143568,0.05051333,3502.7,3502.1,2.3877]
[1721560143975,0.5927639,3503.0,3502.1,2.3877]
[1721560144171,0.05048029,3502.6,3502.1,2.3877]
[1721560144378,0.5927639,3503.0,3502.1,2.3877]
[1721560144595,0.05044726,3502.5,3502.1,2.3877]
[1721560144794,0.5927639,3503.0,3502.1,2.3877]
[1721560144992,0.05041422,3502.4,3502.1,2.3877]
[1721560145178,0.5927639,3503.0,3502.1,2.3877]
[1721560145179,0.44773339,3502.7,3502.1,2.3877]
[1721560145380,0.05038118,3502.3,3502.1,2.3877]
[1721560145587,0.44773339,3502.7,3502.1,2.3877]
[1721560145906,0.05034814,3502.2,3502.1,2.3877]
[1721560146075,0.44773339,3502.7,3502.1,2.3877]
[1721560146276,0.05048029,3502.6,3502.1,2.3877]
[1721560152431,0.50256755,3502.5,3502.1,2.3877]
[1721560152636,0.29641212,3502.5,3502.1,2.3877]
[1721560152932,0.05000515,3502.4,3502.1,2.3877]
[1721560153147,0.05000515,3502.4,3502.1,1.6377]
[1721560153290,0.05000515,3502.4,3501.1,0.59994138]
[1721560153485,0.26248173,3502.3,3501.2,2.48255831]
[1721560153690,0.04995063,3502.2,3501.1,0.30789545]
[1721560153890,0.26248173,3502.3,3501.2,0.99305698]
[1721560154128,0.0490673,3502.2,3501.1,0.30789545]
[1721560154341,0.0490673,3502.2,3501.2,0.99305779]
[1721560154631,2.57481212,3502.5,3501.3,0.19008946]
[1721560154834,2.57481212,3502.5,3501.1,0.30789545]
[1721560154835,0.04903425,3502.1,3501.1,0.30789545]
[1721560155033,2.57481212,3502.5,3501.2,0.99306004]
[1721560155339,0.25524131,3502.4,3501.1,0.30789545]
[1721560155547,0.44008947,3502.4,3501.2,0.99305924]
[1721560155713,0.44008947,3502.4,3501.1,0.30789545]
[1721560155891,0.44008947,3502.4,3501.2,0.99304953]
[1721560156090,0.44008947,3502.4,3501.3,2.3977]
[1721560156305,0.04912182,3502.4,3501.3,2.3977]
[1721560156693,0.04912182,3502.4,3501.4,3.44778373]
[1721560156905,0.04912182,3502.4,3501.4,2.45480832]
[1721560157508,0.04912182,3502.4,3501.5,0.99295183]
[1721560157705,0.04912182,3502.4,3501.7,2.3977]
[1721560158823,0.04912182,3502.4,3501.7,2.64318086]
[1721560165242,0.04912182,3502.4,3501.7,2.3977]
[1721560170251,0.55,3502.3,3501.7,2.3977]
[1721560170449,0.0490636,3502.2,3501.7,2.3977]
[1721560172875,0.29641212,3502.5,3501.7,2.3977]
[1721560173064,0.04912969,3502.4,3501.7,2.3977]
[1721560173269,0.04912969,3502.4,3501.8,0.23977]
[1721560174558,0.04912969,3502.4,3501.6,2.4931]
[1721560174756,0.04912969,3502.4,3501.5,0.59994138]
[1721560174757,0.04912969,3502.4,3501.7,2.48224773]
[1721560174958,0.04912969,3502.4,3501.8,2.4931]
[1721560177694,0.04912969,3502.4,3501.5,0.59994138]
[1721560177851,0.04912969,3502.4,3501.6,0.99299802]
[1721560178181,0.04912969,3502.4,3501.7,0.3486098]
[1721560178678,0.04912969,3502.4,3501.8,2.55020447]
[1721560179377,0.04912969,3502.4,3501.8,0.05710447]
[1721560179583,2.4443,3502.3,3501.4,2.4931]
[1721560179784,2.4443,3502.3,3501.5,1.39221618]
[1721560179957,0.0490642,3502.2,3501.5,0.39920466]
[1721560184196,0.0490642,3502.2,3501.6,0.99300357]
[1721560184496,0.0490642,3502.2,3501.5,0.39920466]
[1721560184686,0.0490642,3502.2,3501.6,0.99300552]
[1721560184889,0.0490642,3502.2,3501.5,0.39920466]
[1721560185194,0.0490642,3502.2,3501.6,0.3492246]
[1721560192396,0.55,3502.1,3501.6,0.3492246]
[1721560192831,0.04849435,3502.0,3501.6,0.3492246]
[1721560193814,0.04849435,3502.0,3501.4,2.4931]
[1721560194119,0.55,3501.9,3501.4,2.4931]
[1721560194327,0.04843506,3501.8,3501.5,2.48257071]
[1721560194531,0.04843506,3501.8,3501.4,2.4931]
[1721560194715,0.04843506,3501.8,3501.5,2.48253652]
[1721560194918,0.04843506,3501.8,3501.4,2.9230942]
[1721560194919,0.55,3501.7,3501.4,0.4299942]
[1721560195215,0.04836895,3501.6,3501.5,0.99302489]
[1721560197135,0.04836895,3501.6,3501.5,0.99302492]
[1721560197331,0.04836895,3501.6,3501.5,0.99302493]
[1721560197541,0.04836895,3501.6,3501.5,2.48254257]
[1721560197752,0.04836895,3501.6,3501.5,0.99302498]
[1721560198053,0.59836895,3501.6,3501.5,0.99302498]
[1721560198362,0.59836895,3501.6,3501.5,4.83667573]
[1721560198658,0.59836895,3501.6,3501.5,5.51323738]
[1721560199925,0.55,3501.6,3501.5,5.51323738]
[1721560200248,0.29641212,3502.5,3501.5,6.11317876]
[1721560200455,0.75617406,3502.4,3501.6,2.53943621]
[1721560200685,0.75617406,3502.4,3501.7,2.48233161]
[1721560200686,0.59866796,3502.4,3501.7,2.48233161]
[1721560200956,0.55,3502.4,3501.8,0.99293264]
[1721560201265,0.20617273,3502.3,3501.8,0.05710459]
[1721560201425,0.55,3502.2,3501.8,0.05710459]
[1721560201830,0.04856883,3502.1,3501.8,0.05710459]
[1721560202075,0.55,3502.0,3501.9,2.3799]
[1721560202364,0.04830501,3502.0,3501.9,5.46199472]
[1721560202547,0.04830501,3502.0,3501.9,5.51909004]
[1721560202729,2.3504,3503.1,3502.0,2.3799]
[1721560202933,0.25487299,3502.9,3502.1,2.48193918]
[1721560203224,2.3504,3503.1,3502.2,2.53903705]
[1721560203417,2.3504,3503.1,3502.3,0.05709512]
[1721560203418,0.20612651,3503.0,3502.3,0.05709512]
[1721560203615,0.75612651,3502.9,3502.3,0.05709512]
[1721560203829,0.55,3502.9,3502.3,0.05709512]
[1721560204031,0.04870949,3502.8,3502.1,0.67937689]
[1721560204248,0.55,3502.7,3502.2,0.99278035]
[1721560204458,0.55,3502.7,3502.1,0.67937689]
[1721560204644,0.55,3503.0,3502.1,0.67937689]
[1721560204842,0.20619698,3502.9,3502.1,0.67937689]
[1721560205038,0.55,3502.8,3502.1,0.67937689]
[1721560205243,0.55,3502.8,3502.0,2.3799]
[1721560205458,0.04800822,3502.7,3502.1,0.99279222]
[1721560205632,0.55,3502.6,3502.0,2.3799]
[1721560206035,0.55,3502.6,3502.1,0.9927918]
[1721560206222,0.55,3502.6,3502.0,2.3799]
[1721560206423,0.55,3502.6,3502.1,1.29074337]
[1721560206726,0.55,3502.6,3502.1,0.29796132]
[1721560211974,0.692,3502.6,3502.1,0.29796132]
[1721560214048,0.692,3502.6,3502.2,0.05709651]
[1721560214247,0.692,3502.6,3502.1,0.29796132]
[1721560215431,0.692,3502.6,3502.0,2.3799]
[1721560222360,0.0481647,3502.5,3502.0,2.3799]
[1721560222572,0.55,3502.4,3502.0,2.3799]
[1721560222742,0.04809863,3502.3,3502.0,2.3799]
[1721560222943,0.55,3502.2,3502.0,2.3799]
[1721560223177,0.04803254,3502.1,3502.0,2.3799]
[1721560223379,0.59803254,3502.1,3502.0,2.3799]
[1721560226367,0.59803254,3502.1,3502.0,2.67786132]
[1721560231796,0.6221197,3502.1,3502.0,2.67786132]
[1721560233995,0.55,3502.1,3502.0,5.15979081]
[1721560234300,0.55,3502.1,3502.0,5.81660224]
[1721560235170,0.55,3502.1,3502.0,5.816402]
[1721560236697,0.55,3502.1,3502.0,5.21668877]
[1721560236899,0.55,3502.1,3502.0,5.816402]
[1721560237266,0.55,3502.1,3502.0,5.21668877]
[1721560238216,0.55,3502.1,3502.0,2.67786132]
[1721560238496,0.55,3502.1,3502.0,5.15970439]
[1721560238711,0.55,3502.1,3502.0,2.67786132]
[1721560238877,0.55,3502.1,3502.0,5.15960642]
[1721560240199,0.55,3502.1,3502.0,5.75931965]
[1721560241094,0.55,3502.1,3502.0,5.81641792]
[1721560241478,0.55,3502.1,3502.0,5.75940413]
[1721560241810,0.55,3502.1,3502.0,5.15960969]
[1721560242003,0.55,3502.1,3502.0,5.75870761]
[1721560243579,0.55,3502.1,3502.0,5.15960969]
[1721560244301,0.55,3502.1,3502.0,8.04402951]
[1721560244670,0.55,3502.1,3502.0,5.56228114]
[1721560244872,0.55,3502.1,3502.0,8.04404894]
[1721560245079,0.55,3502.1,3502.0,5.66414894]
[1721560245423,0.55,3502.1,3502.0,3.37939171]
[1721560245424,0.06932559,3502.1,3502.0,3.37939171]
[1721560245699,0.55,3502.1,3502.0,3.37939171]
[1721560245925,0.61935472,3502.1,3502.0,3.37939171]
[1721560247717,0.61935472,3502.1,3502.0,2.77972912]
[1721560248102,0.61935472,3502.1,3502.0,2.77988787]
[1721560248598,0.61935472,3502.1,3502.0,3.37969263]
[1721560250933,0.61935472,3502.1,3502.0,3.08173131]
[1721560251219,2.97565472,3502.1,3501.9,0.59980476]
[1721560251386,2.97565472,3502.1,3502.0,2.48214246]
[1721560251590,2.97565472,3502.1,3501.8,0.59980476]
[1721560251805,0.55,3502.0,3501.9,2.48223412]
[1721560252026,0.61932203,3502.0,3501.9,2.48223412]
[1721560254113,0.61932203,3502.0,3501.9,2.4822514]
[1721560254561,0.61932203,3502.0,3501.9,2.48223273]
[1721560254828,0.6193088,3502.0,3501.9,3.08203749]
[1721560255037,0.6193088,3502.0,3501.9,0.59980476]
[1721560255187,0.6193088,3502.0,3501.9,3.23178609]
[1721560255391,0.0693088,3502.0,3501.9,5.5165443]
[1721560255616,0.142,3502.6,3501.9,5.57364247]
[1721560255896,0.142,3502.6,3502.1,0.59967919]
[1721560256098,0.06950794,3502.5,3502.2,2.53919671]
[1721560256327,0.06950794,3502.5,3502.3,1.04993661]
[1721560256514,0.06950794,3502.5,3502.3,0.05709648]
[1721560256710,0.55,3502.4,3502.3,0.05709648]
[1721560256912,0.61944655,3502.4,3502.3,0.99276862]
[1721560257712,0.61944655,3502.4,3502.3,0.99276609]
[1721560258431,0.61944655,3502.4,3502.3,2.48186767]
[1721560258634,0.61944655,3502.4,3502.3,0.99276609]
[1721560258823,0.55,3502.4,3502.3,0.99276609]
[1721560259027,0.55,3502.5,3502.3,0.99276609]
[1721560259204,0.55,3502.5,3502.1,0.59967919]
[1721560259407,0.55,3502.5,3502.2,2.48188115]
[1721560259738,0.55,3502.5,3502.3,0.99275246]
[1721560259905,0.55,3502.5,3502.1,0.59967919]
[1721560260107,0.55,3502.5,3502.2,2.48186957]